bitfinex/quotes_SOLUSD_20241202
["timestamp","ask_amount","ask_price","bid_price","bid_amount"]
[1733148791059,0.12549,225.87,225.72,23.776884]
[1733148791447,0.12549,225.85,225.72,23.776884]
[1733148791648,0.25098,225.85,225.72,23.776884]
[1733148792058,0.25098,225.85,225.74,23.776884]
[1733148792284,0.25098,225.85,225.75,15.321]
[1733148792445,0.25098,225.85,225.76,23.776884]
[1733148792647,0.12549,225.84,225.76,23.776884]
[1733148792876,0.12549,225.83,225.76,23.776884]
[1733148793268,0.12549,225.83,225.75,15.321]
[1733148794076,20.0,225.88,225.76,7.28711485]
[1733148794386,20.0,225.88,225.76,6.4034]
[1733148794673,20.0,225.88,225.75,15.321]
[1733148794674,1.1068,225.87,225.75,15.321]
[1733148794874,0.25098,225.86,225.75,15.321]
[1733148795250,0.12549,225.85,225.75,15.321]
[1733148796178,0.12549,225.85,225.76,23.776884]
[1733148796473,20.0,225.87,225.76,23.776884]
[1733148796787,20.0,225.88,225.76,23.776884]
[1733148797575,1.1066,225.91,225.76,23.776884]
[1733148797782,135.2,225.93,225.8,23.776884]
[1733148798353,0.12549,225.92,225.8,23.776884]
[1733148798558,1.23199,225.92,225.8,23.776884]
[1733148798779,8.85363895,225.92,225.76,23.776884]
[1733148798991,0.25098,225.88,225.76,23.776884]
[1733148799375,0.25098,225.84,225.75,15.321]
[1733148799700,0.25098,225.84,225.76,23.776884]
[1733148800868,0.12549,225.82,225.76,23.776884]
[1733148801066,0.12549,225.8,225.76,23.776884]
[1733148801688,0.25098,225.82,225.76,23.776884]
[1733148801993,0.12549,225.81,225.76,23.776884]
[1733148802566,0.12549,225.83,225.76,23.776884]
[1733148806283,135.2,225.87,225.76,24.66047314]
[1733148806485,20.0,225.9,225.76,37.54462005]
[1733148806686,135.2,225.93,225.76,24.66047314]
[1733148807203,135.2,225.93,225.76,29.07747314]
[1733148807767,0.12549,225.89,225.76,29.07747314]
[1733148807977,0.25098,225.89,225.76,40.15087314]
[1733148808389,0.25098,225.89,225.76,35.73387314]
[1733148809368,0.25098,225.89,225.76,24.66047314]
[1733148810077,0.12549,225.86,225.76,24.66047314]
[1733148810272,0.12549,225.85,225.76,23.776884]
[1733148810626,0.12549,225.85,225.75,15.321]
[1733148811079,0.12549,225.86,225.75,15.321]
[1733148811682,0.12549,225.86,225.76,23.776884]
[1733148812673,0.12549,225.85,225.76,23.776884]
[1733148813094,0.12549,225.85,225.7,11.95995977]
[1733148813095,0.25098,225.81,225.71,15.8013]
[1733148813482,0.12549,225.8,225.71,15.8013]
[1733148813682,0.12549,225.78,225.71,15.8013]
[1733148813872,0.12549,225.79,225.71,15.8013]
[1733148814069,0.25098,225.77,225.71,15.8013]
[1733148814286,0.12549,225.78,225.71,15.8013]
[1733148814579,0.12549,225.73,225.65,15.6028]
[1733148815401,0.25098,225.7,225.64,0.5284748]
[1733148815974,0.25098,225.74,225.65,15.6028]
[1733148816189,1.107,225.83,225.67,12.88414691]
[1733148816379,1.107,225.83,225.68,0.88367767]
[1733148816978,0.25098,225.82,225.69,23.776884]
[1733148817188,1.107,225.83,225.69,23.776884]
[1733148817381,20.12549,225.82,225.69,23.776884]
[1733148817697,0.12549,225.8,225.67,23.776884]
[1733148817881,0.12549,225.8,225.69,23.776884]
[1733148818680,0.12549,225.8,225.67,23.776884]
[1733148818891,0.25098,225.79,225.67,23.776884]
[1733148819079,0.37647,225.77,225.67,23.776884]
[1733148819275,0.37647,225.77,225.66,6.1271]
[1733148820299,0.37647,225.77,225.66,7.01100275]
[1733148820503,0.12549,225.79,225.66,7.01100275]
[1733148820688,0.37647,225.79,225.66,7.01100275]
[1733148821006,0.37647,225.79,225.67,23.776884]
[1733148821305,0.12549,225.76,225.67,23.776884]
[1733148822698,20.0,225.75,225.67,23.776884]
[1733148822911,0.37647,225.74,225.67,23.776884]
[1733148823985,0.37647,225.74,225.65,15.6028]
[1733148825095,0.12549,225.71,225.65,15.6028]
[1733148825308,0.25098,225.71,225.64,24.3053588]
[1733148825804,0.25098,225.71,225.64,0.5284748]
[1733148827200,20.25098,225.71,225.64,0.5284748]
[1733148828178,0.12549,225.69,225.64,0.5284748]
[1733148828489,0.12549,225.68,225.64,0.5284748]
[1733148828793,0.12549,225.69,225.64,24.3053588]
[1733148828994,0.12549,225.72,225.64,24.3053588]
[1733148829189,0.25098,225.72,225.64,24.3053588]
[1733148829988,0.25098,225.72,225.64,0.5284748]
[1733148831786,0.12549,225.72,225.64,0.5284748]
[1733148833609,0.25098,225.74,225.64,0.5284748]
[1733148833795,0.12549,225.73,225.64,0.5284748]
[1733148834392,20.0,225.76,225.64,38.07351997]
[1733148834606,135.2,225.79,225.67,36.66103091]
[1733148834813,7.4262,225.81,225.69,23.776884]
[1733148835111,7.4262,225.81,225.64,0.5284748]
[1733148835112,0.25098,225.78,225.64,0.5284748]
[1733148835687,135.2,225.77,225.64,0.5284748]
[1733148835906,20.0,225.74,225.64,0.5284748]
[1733148836093,0.12549,225.75,225.64,0.5284748]
[1733148836297,0.37647,225.75,225.64,0.5284748]
[1733148836602,0.37647,225.75,225.64,24.3053588]
[1733148840438,0.25098,225.75,225.66,23.776884]
[1733148840605,2.77397246,225.82,225.69,29.887284]
[1733148840606,0.12549,225.81,225.69,29.887284]
[1733148840809,1.107,225.83,225.71,23.776884]
[1733148841240,1.107,225.83,225.7,23.776884]
[1733148841837,0.12549,225.82,225.7,23.776884]
[1733148842219,1.23259,225.81,225.69,6.1104]
[1733148842423,0.12549,225.8,225.69,6.1104]
[1733148842628,0.25098,225.78,225.67,15.8808]
[1733148842931,20.25098,225.73,225.62,22.1649]
[1733148843140,0.12549,225.71,225.62,22.1649]
[1733148843336,0.12549,225.69,225.62,22.1649]
[1733148843512,135.32549,225.71,225.57,15.644]
[1733148843513,0.25098,225.67,225.57,15.644]
[1733148844244,0.12549,225.66,225.57,15.644]
[1733148844613,0.12549,225.65,225.57,15.644]
[1733148844814,0.12549,225.67,225.57,15.644]
[1733148848113,0.12549,225.68,225.57,16.52817299]
[1733148848313,20.0,225.71,225.58,12.88414691]
[1733148848519,0.25098,225.7,225.58,12.88414691]
[1733148849539,0.25098,225.7,225.64,0.5284748]
[1733148849733,0.12549,225.69,225.64,0.5284748]
[1733148849941,135.2,225.77,225.65,22.8333]
[1733148850145,1.1072,225.79,225.66,36.66103091]
[1733148851133,135.2,225.8,225.68,23.776884]
[1733148851319,135.2,225.8,225.69,12.88414691]
[1733148851633,0.25098,225.79,225.7,23.776884]
[1733148851842,135.2,225.83,225.7,23.776884]
[1733148852148,135.2,225.83,225.68,36.66103091]
[1733148852331,135.2,225.83,225.7,23.776884]
[1733148852938,20.0,225.8,225.69,23.776884]
[1733148853129,0.37647,225.79,225.69,23.776884]
[1733148853336,20.0,225.8,225.7,13.76791848]
[1733148853542,20.0,225.8,225.72,16.0212]
[1733148853916,0.25098,225.79,225.72,16.0212]
[1733148854226,20.0,225.83,225.73,6.6098]
[1733148854429,20.0,225.83,225.74,23.776884]
[1733148854621,0.25098,225.82,225.74,23.776884]
[1733148855735,0.12549,225.81,225.74,23.776884]
[1733148856131,0.12549,225.84,225.74,23.776884]
[1733148856614,0.25098,225.84,225.74,23.776884]
[1733148859242,0.25098,225.84,225.73,6.6098]
[1733148860025,0.25098,225.83,225.73,6.6098]
[1733148860224,0.12549,225.82,225.73,6.6098]
[1733148862055,0.12549,225.83,225.73,6.6098]
[1733148863829,0.12549,225.83,225.74,0.88362466]
[1733148864028,0.12549,225.83,225.74,13.76777157]
[1733148864337,1.1067,225.9,225.76,12.88414691]
[1733148864723,0.12549,225.89,225.75,36.66103091]
[1733148864921,0.12549,225.89,225.76,0.88341431]
[1733148865153,1.1067,225.9,225.77,23.776884]
[1733148865327,135.2,225.92,225.79,15.7158]
[1733148865737,0.12549,225.91,225.79,15.7158]
[1733148866150,0.12549,225.92,225.79,15.7158]
[1733148866529,20.25098,225.9,225.79,15.7158]
[1733148866747,20.12549,225.9,225.79,15.7158]
[1733148867428,0.12549,225.9,225.79,15.7158]
[1733148867639,0.37647,225.9,225.79,15.7158]
[1733148870953,20.37647,225.9,225.79,15.7158]
[1733148873960,0.37647,225.9,225.79,15.7158]
[1733148874971,0.25098,225.85,225.74,16.2308]
[1733148875264,20.25098,225.85,225.74,16.2308]
[1733148876155,0.12549,225.83,225.74,16.2308]
[1733148876467,0.25098,225.81,225.74,16.2308]
[1733148877367,0.25098,225.83,225.74,16.2308]
[1733148877738,0.12549,225.82,225.69,40.354084]
[1733148877946,0.12549,225.82,225.69,16.5772]
[1733148881163,0.12549,225.8,225.69,16.5772]
[1733148881574,20.25098,225.75,225.64,15.8167748]
[1733148882367,0.25098,225.75,225.64,15.8167748]
[1733148882673,0.12549,225.75,225.64,15.8167748]
[1733148883342,0.12549,225.75,225.64,24.11031503]
[1733148883741,0.12549,225.75,225.64,15.8167748]
[1733148883942,1.3048,225.78,225.65,9.17747278]
[1733148884178,1.3048,225.78,225.66,23.776884]
[1733148884757,0.37647,225.77,225.66,23.776884]
[1733148885158,0.25098,225.75,225.66,23.776884]
[1733148885366,0.25098,225.75,225.66,32.07042423]
[1733148885367,0.37647,225.75,225.66,32.07042423]
[1733148886568,0.37647,225.75,225.67,0.88382992]
[1733148886775,0.37647,225.75,225.69,8.29354023]
[1733148887078,0.37647,225.75,225.69,9.17723427]
[1733148887549,0.12549,225.81,225.69,9.17723427]
[1733148887754,0.25098,225.81,225.69,9.17723427]
[1733148888477,0.12549,225.79,225.69,0.88369404]
[1733148888885,0.25098,225.79,225.69,0.88369404]
[1733148889476,0.25098,225.79,225.7,23.776884]
[1733148891061,0.25098,225.79,225.68,23.776884]
[1733148891654,0.25098,225.79,225.66,23.776884]
[1733148891850,0.12549,225.78,225.66,23.776884]
[1733148892079,0.12549,225.77,225.66,23.776884]
[1733148893198,0.12549,225.77,225.66,32.07042423]
[1733148893474,0.12549,225.77,225.68,32.07042423]
[1733148893950,0.12549,225.77,225.7,23.776884]
[1733148894365,0.12549,225.77,225.7,32.07042423]
[1733148894966,0.12549,225.77,225.69,0.88373706]
[1733148895155,0.12549,225.77,225.65,23.776884]
[1733148895556,0.37647,225.77,225.65,23.776884]
[1733148896163,0.37647,225.77,225.67,23.776884]
[1733148897171,0.37647,225.77,225.64,35.18971503]
[1733148897363,0.37647,225.77,225.65,23.776884]
[1733148898483,0.37647,225.77,225.64,15.8167748]
[1733148899257,0.25098,225.75,225.64,15.8167748]
[1733148900471,0.12549,225.74,225.64,15.8167748]
[1733148900657,0.12549,225.73,225.65,4.417]
[1733148900857,0.37647,225.7,225.65,4.417]
[1733148901065,0.37647,225.7,225.66,0.88394002]
[1733148901267,0.25098,225.7,225.65,4.417]
[1733148901456,1.1071,225.82,225.67,8.29354023]
[1733148901658,1.1071,225.82,225.68,0.88373982]
[1733148901852,0.12549,225.81,225.69,23.776884]
[1733148902066,0.25098,225.81,225.68,23.776884]
[1733148902780,0.25098,225.78,225.68,23.776884]
[1733148902954,0.12549,225.73,225.68,23.776884]
[1733148903158,0.12549,225.74,225.68,23.776884]
[1733148904266,0.12549,225.74,225.64,15.8167748]
[1733148904465,0.12549,225.74,225.65,23.776884]
[1733148904663,0.12549,225.74,225.64,15.8167748]
[1733148906268,0.37647,225.72,225.64,0.5284748]
[1733148908582,1.3048,225.68,225.64,0.5284748]
[1733148908764,20.12549,225.65,225.5,0.884216]
[1733148908970,0.12549,225.64,225.51,8.29354023]
[1733148909175,0.12549,225.64,225.52,0.88430117]
[1733148909682,0.12549,225.64,225.53,4.417]
[1733148909864,0.12549,225.64,225.5,0.88442104]
[1733148910054,0.12549,225.64,225.51,23.776884]
[1733148910258,0.12549,225.63,225.5,0.88442104]
[1733148911365,0.12549,225.63,225.49,15.1754]
[1733148912290,0.25098,225.63,225.49,15.1754]
[1733148912476,0.12549,225.61,225.49,15.1754]
[1733148912679,0.12549,225.6,225.49,15.1754]
[1733148912870,0.12549,225.6,225.42,0.5284748]
[1733148912871,0.12549,225.6,225.45,20.0]
[1733148913198,0.12549,225.57,225.44,9.17811725]
[1733148913487,0.12549,225.57,225.44,0.88457702]
[1733148913668,0.12549,225.54,225.44,0.88457702]
[1733148913865,0.12549,225.54,225.43,15.1958]
[1733148914592,0.12549,225.54,225.42,0.5284748]
[1733148914593,0.12549,225.52,225.42,0.5284748]
[1733148916263,7.3064,225.51,225.42,0.5284748]
[1733148916467,0.25098,225.47,225.42,0.5284748]
[1733148916701,0.25098,225.45,225.42,0.5284748]
[1733148918690,135.2,225.49,225.29,0.19137515]
[1733148918691,0.12549,225.36,225.29,0.19137515]
[1733148918990,0.12549,225.39,225.29,0.19137515]
[1733148919194,0.12549,225.39,225.31,8.29354023]
[1733148919392,20.0,225.41,225.31,8.29354023]
[1733148919601,0.12549,225.4,225.32,13.89556079]
[1733148920103,0.37647,225.4,225.33,36.78721232]
[1733148920484,0.37647,225.4,225.34,13.01032832]
[1733148920810,0.37647,225.4,225.31,29.54092832]
[1733148920994,0.37647,225.4,225.32,23.776884]
[1733148921400,1.1087,225.48,225.37,13.01032832]
[1733148921401,0.12549,225.48,225.37,13.01032832]
[1733148921706,0.12549,225.48,225.38,13.01032832]
[1733148921882,0.12549,225.48,225.39,23.776884]
[1733148922084,1.1085,225.53,225.39,37.67213555]
[1733148922309,1.1085,225.53,225.39,23.776884]
[1733148922502,1.1085,225.53,225.38,23.776884]
[1733148922714,135.2,225.55,225.41,23.776884]
[1733148922891,135.2,225.55,225.4,23.776884]
[1733148923498,142.0471,225.56,225.41,0.8847939]
[1733148923697,135.2,225.55,225.35,23.776884]
[1733148923892,0.25098,225.54,225.41,36.78721232]
[1733148924391,6.8471,225.56,225.43,36.78721232]
[1733148924593,6.8471,225.56,225.44,13.89507891]
[1733148924813,136.3081,225.61,225.47,23.776884]
[1733148924982,135.2,225.6,225.47,23.776884]
[1733148925183,0.12549,225.59,225.45,23.776884]
[1733148925405,1.1082,225.58,225.45,23.776884]
[1733148925610,20.0,225.57,225.45,23.776884]
[1733148925789,135.2,225.6,225.46,13.01032832]
[1733148926117,0.12549,225.59,225.47,23.776884]
[1733148926504,135.2,225.6,225.47,13.01032832]
[1733148926732,0.12549,225.59,225.48,23.776884]
[1733148927411,0.12549,225.58,225.46,23.776884]
[1733148927594,0.12549,225.58,225.47,0.88455226]
[1733148927798,0.12549,225.58,225.5,23.776884]
[1733148928107,6.357,225.62,225.52,23.776884]
[1733148928319,6.357,225.62,225.5,4.417]
[1733148928491,6.357,225.62,225.49,0.88441876]
[1733148928691,0.25098,225.61,225.49,0.88441876]
[1733148929017,0.25098,225.61,225.5,23.776884]
[1733148929215,0.25098,225.61,225.51,0.88438735]
[1733148929413,0.25098,225.61,225.48,13.89473661]
[1733148929614,0.12549,225.6,225.49,23.776884]
[1733148929920,13.66346006,225.67,225.52,17.42732832]
[1733148930128,6.1162,225.73,225.55,36.78721232]
[1733148930324,135.2,225.72,225.56,29.44437869]
[1733148930613,6.1162,225.73,225.58,13.01032832]
[1733148930910,6.1162,225.73,225.62,13.01032832]
[1733148931120,13.28036006,225.79,225.64,23.776884]
[1733148931412,6.0776,225.79,225.65,0.88383483]
[1733148931922,6.0776,225.79,225.63,23.776884]
[1733148932220,7.1848,225.79,225.61,23.776884]
[1733148932389,0.25098,225.78,225.61,23.776884]
[1733148932594,140.90446701,225.78,225.6,23.776884]
[1733148932796,0.25098,225.74,225.6,23.776884]
[1733148933116,0.25098,225.74,225.59,20.88406813]
[1733148933499,0.25098,225.72,225.59,20.88406813]
[1733148933700,0.12549,225.71,225.59,20.88406813]
[1733148935117,0.12549,225.71,225.56,15.5499]
[1733148935415,0.12549,225.66,225.56,15.5499]
[1733148936023,0.12549,225.66,225.56,16.43412064]
[1733148936414,0.12549,225.66,225.56,15.5499]
[1733148938321,0.12549,225.66,225.57,24.66108115]
[1733148938903,0.12549,225.66,225.57,23.776884]
[1733148939618,0.12549,225.66,225.56,15.5499]
[1733148939801,0.12549,225.66,225.51,23.776884]
[1733148939995,23.902374,225.61,225.45,0.88435503]
[1733148940201,0.12549,225.61,225.49,13.01032832]
[1733148940421,20.12549,225.61,225.5,0.884367]
[1733148940728,0.12549,225.6,225.5,0.884367]
[1733148941023,0.12549,225.61,225.5,0.884367]
[1733148941227,0.12549,225.63,225.5,13.89469532]
[1733148941433,0.12549,225.63,225.51,23.776884]
[1733148941616,0.12549,225.63,225.52,0.88433792]
[1733148941920,0.12549,225.63,225.53,23.776884]
[1733148942225,0.12549,225.63,225.55,23.776884]
[1733148942418,0.12549,225.63,225.56,0.8841831]
[1733148942616,6.2745,225.67,225.56,0.8841831]
[1733148943234,0.7763,225.69,225.56,0.8841831]
[1733148943603,0.12549,225.68,225.54,23.776884]
[1733148943822,20.25098,225.68,225.51,23.776884]
[1733148944024,0.25098,225.63,225.44,27.22527488]
[1733148944201,135.45098,225.63,225.44,27.22527488]
[1733148944543,0.12549,225.54,225.44,15.252]
[1733148945023,0.12549,225.54,225.41,0.88457899]
[1733148945324,0.12549,225.54,225.39,15.0878]
[1733148945634,0.12549,225.54,225.35,13.01032832]
[1733148945635,0.12549,225.5,225.33,15.0878]
[1733148945805,0.12549,225.48,225.33,15.97276024]
[1733148946822,0.12549,225.48,225.33,28.98308856]
[1733148947033,0.12549,225.48,225.35,13.01032832]
[1733148947253,0.12549,225.48,225.39,13.01032832]
[1733148947521,0.12549,225.48,225.4,0.88474467]
[1733148949152,20.0,225.54,225.4,0.88474467]
[1733148949153,0.12549,225.53,225.41,23.776884]
[1733148949424,0.12549,225.53,225.42,0.88474478]
[1733148949826,0.12549,225.55,225.43,23.776884]
[1733148950007,135.2,225.61,225.45,23.776884]
[1733148950209,1.90080942,225.62,225.46,0.88459142]
[1733148950210,0.12549,225.58,225.46,0.88459142]
[1733148950617,137.0843,225.62,225.46,0.88459142]
[1733148950826,1.8843,225.62,225.47,23.776884]
[1733148951118,1.8843,225.62,225.49,23.776884]
[1733148951317,0.7763,225.62,225.49,23.776884]
[1733148952135,20.0,225.56,225.5,0.88446222]
[1733148952319,0.7763,225.62,225.5,0.88446222]
[1733148952641,0.7763,225.62,225.51,23.776884]
[1733148952815,0.7763,225.62,225.52,0.88432141]
[1733148954230,0.37647,225.6,225.52,0.88432141]
[1733148955652,0.12549,225.63,225.53,23.776884]
[1733148955813,0.7763,225.68,225.55,23.776884]
[1733148956007,0.7763,225.68,225.56,0.88419929]
[1733148956213,0.25098,225.67,225.56,0.88419929]
[1733148957439,0.12549,225.66,225.56,0.88419929]
[1733148957741,0.12549,225.66,225.57,23.776884]
[1733148957942,0.12549,225.66,225.58,0.88408392]
[1733148958119,6.417,225.69,225.59,23.776884]
[1733148958427,0.7763,225.73,225.59,23.776884]
[1733148958428,0.7763,225.73,225.6,0.88403471]
[1733148959531,0.25098,225.72,225.6,0.88403471]
[1733148960118,0.25098,225.7,225.6,0.88403471]
[1733148961123,6.0266,225.74,225.61,44.56759986]
[1733148961337,7.4047,225.79,225.63,23.776884]
[1733148961628,7.4047,225.79,225.65,23.776884]
[1733148961841,7.4047,225.79,225.66,0.88372814]
[1733148962012,0.25098,225.78,225.66,0.88372814]
[1733148962338,0.25098,225.78,225.62,0.88383431]
[1733148962528,0.25098,225.78,225.59,0.88386529]
[1733148962733,0.25098,225.75,225.6,23.776884]
[1733148962933,0.25098,225.75,225.61,0.88393695]
[1733148963143,0.12549,225.74,225.61,0.88393695]
[1733148964417,0.12549,225.74,225.62,23.776884]
[1733148964637,0.12549,225.74,225.63,0.88391378]
[1733148966122,0.12549,225.74,225.64,23.776884]
[1733148966449,20.0,225.76,225.66,23.776884]
[1733148967230,0.12549,225.75,225.66,23.776884]
[1733148967430,0.25098,225.75,225.66,23.776884]
[1733148967739,0.25098,225.75,225.62,23.776884]
[1733148968278,0.25098,225.75,225.63,0.88393993]
[1733148969150,1.35838,225.75,225.61,23.776884]
[1733148969326,1.35838,225.75,225.6,0.88394069]
[1733148969845,0.12549,225.74,225.57,0.88399063]
[1733148970026,0.12549,225.71,225.57,0.88399063]
[1733148970543,0.12549,225.71,225.58,23.776884]
[1733148970735,0.12549,225.71,225.6,23.776884]
[1733148970926,0.12549,225.71,225.61,0.88393891]
[1733148971538,0.12549,225.71,225.6,23.776884]
[1733148972932,0.12549,225.7,225.57,23.776884]
[1733148973137,21.23309,225.71,225.56,23.776884]
[1733148973138,0.12549,225.64,225.56,23.776884]
[1733148973528,0.25098,225.64,225.56,24.66108726]
[1733148973748,0.25098,225.64,225.56,0.88420326]
[1733148973939,6.6071,225.68,225.56,0.88420326]
[1733148974148,0.25098,225.67,225.58,12.98818748]
[1733148974443,0.25098,225.67,225.59,0.88398525]
[1733148974826,6.2515,225.73,225.61,23.776884]
[1733148975028,0.25098,225.72,225.63,23.756884]
[1733148975226,6.2515,225.73,225.64,0.88388441]
[1733148975635,0.25098,225.72,225.64,0.88388441]
[1733148976153,0.25098,225.73,225.64,0.88388441]
[1733148976741,0.12549,225.72,225.64,0.88388441]
[1733148978351,0.12549,225.72,225.62,23.776884]
[1733148979251,0.12549,225.72,225.63,0.8839539]
[1733148980240,0.12549,225.72,225.61,23.776884]
[1733148980445,0.25098,225.7,225.59,23.776884]
[1733148980766,0.25098,225.7,225.6,0.88403562]
[1733148982051,0.25098,225.7,225.56,0.88404881]
[1733148983348,0.25098,225.7,225.57,23.776884]
[1733148983953,0.25098,225.7,225.58,0.88411406]
[1733148984747,0.12549,225.68,225.58,0.88411406]
[1733148985059,0.12549,225.66,225.58,0.88411406]
[1733148985563,0.25098,225.69,225.57,23.776884]
[1733148985860,0.12549,225.66,225.57,23.776884]
[1733148986233,0.12549,225.64,225.57,23.776884]
[1733148986560,0.12549,225.64,225.58,0.88414366]
[1733148986860,0.12549,225.65,225.57,23.776884]
[1733148987064,0.25098,225.65,225.57,23.776884]
[1733148987237,0.25098,225.65,225.56,0.88414398]
[1733148987435,0.25098,225.65,225.55,23.776884]
[1733148987638,0.25098,225.65,225.55,0.88423191]
[1733148988940,0.25098,225.65,225.54,4.433]
[1733148989352,0.25098,225.65,225.53,0.88423231]
[1733148989549,0.12549,225.63,225.53,0.88423231]
[1733148989741,0.25098,225.63,225.51,0.88434375]
[1733148990159,0.25098,225.63,225.5,15.5799]
[1733148990566,0.25098,225.63,225.5,16.46428933]
[1733148991155,0.25098,225.63,225.51,23.776884]
[1733148991363,0.25098,225.63,225.52,0.8843699]
[1733148993543,0.25098,225.63,225.51,23.776884]
[1733148993544,0.12549,225.61,225.51,23.776884]
[1733148993950,0.25098,225.62,225.51,23.776884]
[1733148994147,0.12549,225.61,225.5,15.5799]
[1733148994369,0.12549,225.61,225.49,0.884378]
[1733148996271,0.12549,225.59,225.47,23.776884]
[1733148996465,0.12549,225.59,225.46,0.8845459]
[1733148996466,0.12549,225.56,225.46,0.8845459]
[1733148996667,0.25098,225.56,225.44,0.88462199]
[1733148997547,0.25098,225.56,225.43,13.87280507]
[1733148998064,0.25098,225.56,225.47,12.98818748]
[1733148998284,0.25098,225.56,225.46,23.776884]
[1733148998649,0.25098,225.56,225.45,5.31751953]
[1733149001068,0.12549,225.55,225.45,5.31751953]
[1733149001270,0.12549,225.52,225.45,5.31751953]
[1733149002280,0.12549,225.53,225.45,5.31751953]
[1733149002858,0.25098,225.52,225.45,5.31751953]
[1733149003874,0.25098,225.52,225.44,11.0894]
[1733149003875,0.12549,225.53,225.42,0.88461883]
[1733149004081,0.12549,225.52,225.37,13.87280631]
[1733149004264,0.12549,225.52,225.37,0.88461883]
[1733149004572,20.12549,225.53,225.35,30.06260777]
[1733149004573,0.25098,225.47,225.35,30.06260777]
[1733149004956,0.25098,225.47,225.36,17.42118748]
[1733149005271,0.25098,225.47,225.37,0.88491593]
[1733149006173,0.25098,225.47,225.33,17.42118748]
[1733149006483,0.37647,225.47,225.33,17.42118748]
[1733149006866,0.37647,225.47,225.34,13.87324878]
[1733149007256,20.37647,225.47,225.36,17.42118748]
[1733149007447,6.079,225.51,225.38,12.98818748]
[1733149007655,6.079,225.51,225.42,12.98818748]
[1733149007971,0.7763,225.55,225.43,13.87287786]
[1733149008353,0.7763,225.55,225.44,12.98818748]
[1733149008578,0.7763,225.55,225.46,12.98818748]
[1733149008878,0.7763,225.55,225.47,13.87278822]
[1733149009255,0.7763,225.55,225.47,0.88460074]
[1733149009757,0.25098,225.54,225.47,0.88460074]
[1733149010170,0.25098,225.54,225.46,0.88457407]
[1733149010857,0.12549,225.53,225.45,4.433]
[1733149011175,0.12549,225.51,225.37,13.87287481]
[1733149011378,0.12549,225.51,225.38,12.98818748]
[1733149011584,0.12549,225.51,225.39,0.8848017]
[1733149011949,0.12549,225.5,225.39,0.8848017]
[1733149012881,0.12549,225.5,225.31,0.88483396]
[1733149012882,7.09599,225.48,225.31,0.88483396]
[1733149013054,0.12549,225.43,225.27,13.87333329]
[1733149013260,0.12549,225.43,225.27,24.97063329]
[1733149013869,0.12549,225.43,225.27,11.98244581]
[1733149014181,0.12549,225.43,225.27,29.40363329]
[1733149014475,0.12549,225.43,225.28,12.98818748]
[1733149014654,0.12549,225.43,225.3,23.776884]
[1733149014862,20.0,225.45,225.34,12.98818748]
[1733149015063,20.0,225.45,225.35,0.88500735]
[1733149015276,0.12549,225.44,225.35,0.88500735]
[1733149015866,6.9705,225.48,225.38,23.776884]
[1733149016176,0.12549,225.47,225.38,24.66175046]
[1733149016378,6.9705,225.48,225.35,0.88486271]
[1733149016586,0.12549,225.47,225.36,23.776884]
[1733149017475,0.12549,225.47,225.37,0.88497789]
[1733149017678,0.25098,225.47,225.38,23.776884]
[1733149017876,0.12549,225.47,225.39,0.88488798]
[1733149018061,0.12549,225.44,225.31,23.776884]
[1733149018254,0.12549,225.44,225.33,23.776884]
[1733149018563,0.25098,225.44,225.33,23.776884]
[1733149019177,0.12549,225.43,225.33,24.66195139]
[1733149019381,0.37647,225.44,225.33,24.66195139]
[1733149020259,0.37647,225.44,225.33,35.75665139]
[1733149020957,20.0,225.45,225.33,35.75665139]
[1733149021359,0.12549,225.44,225.33,35.75665139]
[1733149021979,0.12549,225.44,225.33,24.66195139]
[1733149022164,0.12549,225.43,225.34,0.88509964]
[1733149022585,0.12549,225.43,225.3,0.88508518]